[Event "*** Titled Tuesday Blitz"]
[Site "Chess.com"]
[Date "2021.04.06"]
[Round "10"]
[White "IANOV0007"]
[Black "tylityli"]
[Result "1-0"]
[WhiteElo "2465"]
[BlackElo "2334"]
[TimeControl "180+1"]
[EndTime "11:56:15 PDT"]
[Termination "IANOV0007 won on time"]

1. Nf3 {[%clk 0:03:00.9]} 1... Nf6 {[%clk 0:02:57.6]} 2. g3 {[%clk 0:03:00.4]}
2... d5 {[%clk 0:02:57.2]} 3. Bg2 {[%clk 0:02:59.7]} 3... Nc6 {[%clk 0:02:57.9]}
4. O-O {[%clk 0:02:58.2]} 4... e5 {[%clk 0:02:57.7]} 5. d3 {[%clk 0:02:58.1]}
5... Be7 {[%clk 0:02:57.1]} 6. c4 {[%clk 0:02:57.7]} 6... d4 {[%clk 0:02:56.8]}
7. b4 {[%clk 0:02:56]} 7... Bxb4 {[%clk 0:02:54.4]} 8. Nxe5 {[%clk 0:02:55]}
8... Nxe5 {[%clk 0:02:47.7]} 9. Qa4+ {[%clk 0:02:54.6]} 9... Bd7 {[%clk
0:02:43.9]} 10. Qxb4 {[%clk 0:02:53.2]} 10... Bc6 {[%clk 0:02:43.7]} 11. Qc5
{[%clk 0:02:47.4]} 11... Qd6 {[%clk 0:01:55.6]} 12. Qxd6 {[%clk 0:02:40]} 12...
cxd6 {[%clk 0:01:54.6]} 13. Ba3 {[%clk 0:02:37.4]} 13... O-O-O {[%clk
0:01:50.7]} 14. Nd2 {[%clk 0:02:35.7]} 14... Bxg2 {[%clk 0:01:42.6]} 15. Kxg2
{[%clk 0:02:34.7]} 15... d5 {[%clk 0:01:42.9]} 16. c5 {[%clk 0:02:32.1]} 16...
Nc6 {[%clk 0:01:41.8]} 17. Nb3 {[%clk 0:02:30.1]} 17... Rhe8 {[%clk 0:01:38.9]}
18. Rfe1 {[%clk 0:02:29.9]} 18... Nd7 {[%clk 0:01:31.5]} 19. Rac1 {[%clk
0:02:24.2]} 19... Nf8 {[%clk 0:01:30.4]} 20. Bb2 {[%clk 0:02:14.2]} 20... Ne6
{[%clk 0:01:29.6]} 21. f4 {[%clk 0:02:12.4]} 21... f5 {[%clk 0:01:28.6]} 22. a3
{[%clk 0:02:10.4]} 22... g6 {[%clk 0:01:21]} 23. Rc2 {[%clk 0:02:09.2]} 23...
Kd7 {[%clk 0:01:12.6]} 24. Rb1 {[%clk 0:02:08.1]} 24... Rb8 {[%clk 0:01:09.1]}
25. Bc1 {[%clk 0:02:06.8]} 25... h5 {[%clk 0:01:01.1]} 26. h4 {[%clk 0:02:03.5]}
26... Nc7 {[%clk 0:00:30.6]} 27. Bb2 {[%clk 0:01:49.3]} 27... Ne6 {[%clk
0:00:30.3]} 28. Kf3 {[%clk 0:01:48.1]} 28... Kc7 {[%clk 0:00:28.9]} 29. Nd2
{[%clk 0:01:38.3]} 29... Kd7 {[%clk 0:00:25]} 30. Bc1 {[%clk 0:01:36.8]} 30...
Rec8 {[%clk 0:00:22.2]} 31. a4 {[%clk 0:01:35.6]} 31... b6 {[%clk 0:00:19.3]}
32. cxb6 {[%clk 0:01:34]} 32... Rxb6 {[%clk 0:00:19.4]} 33. Rxb6 {[%clk
0:01:32.6]} 33... axb6 {[%clk 0:00:20.3]} 34. Kf2 {[%clk 0:01:31.4]} 34... Ra8
{[%clk 0:00:19.9]} 35. Rb2 {[%clk 0:01:27.4]} 35... Kc7 {[%clk 0:00:19.1]} 36.
Ra2 {[%clk 0:01:25.4]} 36... Nc5 {[%clk 0:00:18.9]} 37. Nf3 {[%clk 0:01:21.8]}
37... Rxa4 {[%clk 0:00:16.8]} 38. Rc2 {[%clk 0:01:19.4]} 38... Kd6 {[%clk
0:00:14.8]} 39. Bd2 {[%clk 0:01:15.9]} 39... Ra1 {[%clk 0:00:12.3]} 40. Rb2
{[%clk 0:01:14.7]} 40... Ra6 {[%clk 0:00:10.8]} 41. Ng5 {[%clk 0:01:12.4]} 41...
Na4 {[%clk 0:00:09]} 42. Rb5 {[%clk 0:01:09.8]} 42... Nc3 {[%clk 0:00:07.6]} 43.
Rb3 {[%clk 0:01:08]} 43... Na4 {[%clk 0:00:04.3]} 44. Nf7+ {[%clk 0:01:06.8]}
44... Ke6 {[%clk 0:00:03.1]} 45. Ng5+ {[%clk 0:01:05.1]} 45... Kd6 {[%clk
0:00:03.5]} 46. Nf3 {[%clk 0:01:04.8]} 46... Nc5 {[%clk 0:00:02.8]} 47. Rb2
{[%clk 0:01:03.4]} 47... Na4 {[%clk 0:00:02.7]} 48. Rc2 {[%clk 0:01:02.4]} 48...
Nc5 {[%clk 0:00:02.3]} 49. Bc1 {[%clk 0:01:00.3]} 49... Ra4 {[%clk 0:00:02]} 50.
Bb2 {[%clk 0:01:00]} 50... b5 {[%clk 0:00:01.5]} 51. Bc1 {[%clk 0:00:56.7]} 1-0

[Event "*** Titled Tuesday Blitz"]
[Site "Chess.com"]
[Date "2021.04.06"]
[Round "10"]
[White "Olkaa"]
[Black "DarZay"]
[Result "1-0"]
[WhiteElo "2621"]
[BlackElo "2226"]
[TimeControl "180+1"]
[EndTime "11:56:16 PDT"]
[Termination "Olkaa won by resignation"]

1. d4 {[%clk 0:03:00.9]} 1... d5 {[%clk 0:02:59.7]} 2. Nc3 {[%clk 0:03:00.4]}
2... Nf6 {[%clk 0:02:56.3]} 3. Bg5 {[%clk 0:03:00.4]} 3... Bf5 {[%clk
0:02:55.1]} 4. Bxf6 {[%clk 0:02:59]} 4... exf6 {[%clk 0:02:54.2]} 5. e3 {[%clk
0:02:59.6]} 5... Bb4 {[%clk 0:02:53.1]} 6. Bd3 {[%clk 0:02:58.8]} 6... Bxc3+
{[%clk 0:02:50.3]} 7. bxc3 {[%clk 0:02:58.8]} 7... Be6 {[%clk 0:02:48.8]} 8. Rb1
{[%clk 0:02:51.7]} 8... b6 {[%clk 0:02:46.4]} 9. Ne2 {[%clk 0:02:47.8]} 9... O-O
{[%clk 0:02:46.2]} 10. Nf4 {[%clk 0:02:47.2]} 10... c5 {[%clk 0:02:45.6]} 11.
Qh5 {[%clk 0:02:38.4]} 11... g6 {[%clk 0:02:45.8]} 12. Qh6 {[%clk 0:02:34.6]}
12... f5 {[%clk 0:02:35.7]} 13. h4 {[%clk 0:02:16.9]} 13... c4 {[%clk
0:02:32.6]} 14. Be2 {[%clk 0:02:13.8]} 14... Qf6 {[%clk 0:02:31.3]} 15. Bf3
{[%clk 0:02:06.8]} 15... Nd7 {[%clk 0:02:27.9]} 16. Bxd5 {[%clk 0:01:57.3]}
16... Bxd5 {[%clk 0:02:18.5]} 17. Nxd5 {[%clk 0:01:56.6]} 17... Qg7 {[%clk
0:02:05.6]} 18. Qxg7+ {[%clk 0:01:52.5]} 18... Kxg7 {[%clk 0:02:05.2]} 19. Kd2
{[%clk 0:01:41.4]} 19... Rac8 {[%clk 0:02:02.1]} 20. f3 {[%clk 0:01:40.9]} 20...
Rfe8 {[%clk 0:02:01.8]} 21. a4 {[%clk 0:01:30.7]} 21... Rc6 {[%clk 0:01:54.1]}
22. Rb5 {[%clk 0:01:26.6]} 22... f6 {[%clk 0:01:45.3]} 23. a5 {[%clk 0:01:24.2]}
23... a6 {[%clk 0:01:42.3]} 24. Rbb1 {[%clk 0:01:21.7]} 24... b5 {[%clk
0:01:15.9]} 25. Rhe1 {[%clk 0:01:21.6]} 25... g5 {[%clk 0:01:07.9]} 26. hxg5
{[%clk 0:01:13.3]} 26... fxg5 {[%clk 0:01:07.8]} 27. e4 {[%clk 0:01:13.9]} 27...
fxe4 {[%clk 0:01:05.1]} 28. fxe4 {[%clk 0:01:13.2]} 28... Rce6 {[%clk
0:01:03.4]} 29. Nc7 {[%clk 0:01:11.8]} 29... R8e7 {[%clk 0:01:00.6]} 30. Nxe6+
{[%clk 0:01:10.8]} 30... Rxe6 {[%clk 0:01:01.1]} 31. e5 {[%clk 0:01:08.6]} 31...
Kg6 {[%clk 0:00:59.2]} 32. Rf1 {[%clk 0:01:06.8]} 32... h5 {[%clk 0:00:57.9]}
33. Ke3 {[%clk 0:00:57.6]} 33... g4 {[%clk 0:00:51.2]} 34. Ke4 {[%clk
0:00:56.2]} 34... Kg5 {[%clk 0:00:44.5]} 35. Rf5+ {[%clk 0:00:53.8]} 35... Kh4
{[%clk 0:00:37.8]} 36. Rh1+ {[%clk 0:00:46.1]} 36... Kg3 {[%clk 0:00:38]} 37.
Rhxh5 {[%clk 0:00:42.9]} 37... Kxg2 {[%clk 0:00:34.9]} 38. Rhg5 {[%clk
0:00:41.8]} 38... g3 {[%clk 0:00:34.9]} 39. Rf3 {[%clk 0:00:41.4]} 39... Rh6
{[%clk 0:00:27.5]} 40. Rgxg3+ {[%clk 0:00:39.3]} 40... Kh2 {[%clk 0:00:25.4]}
41. Rg4 {[%clk 0:00:39.5]} 41... Nb8 {[%clk 0:00:20.9]} 42. d5 {[%clk
0:00:38.8]} 42... Nd7 {[%clk 0:00:20.2]} 43. Rf5 {[%clk 0:00:38.1]} 43... Nc5+
{[%clk 0:00:19.7]} 44. Kd4 {[%clk 0:00:35.9]} 44... Na4 {[%clk 0:00:19.7]} 45.
e6 {[%clk 0:00:32.4]} 45... b4 {[%clk 0:00:19]} 46. cxb4 {[%clk 0:00:31.8]}
46... c3 {[%clk 0:00:18.1]} 47. e7 {[%clk 0:00:31.2]} 47... Rh8 {[%clk
0:00:18.4]} 48. Re4 {[%clk 0:00:30.7]} 48... Re8 {[%clk 0:00:17.7]} 49. Rf8
{[%clk 0:00:30.2]} 1-0

[Event "*** Titled Tuesday Blitz"]
[Site "Chess.com"]
[Date "2021.04.06"]
[Round "10"]
[White "zajka-molotok"]
[Black "Handszar"]
[Result "0-1"]
[WhiteElo "2500"]
[BlackElo "2372"]
[TimeControl "180+1"]
[EndTime "11:56:17 PDT"]
[Termination "Handszar won by checkmate"]

1. Nf3 {[%clk 0:03:00.9]} 1... Nf6 {[%clk 0:02:58.7]} 2. c4 {[%clk 0:03:00.3]}
2... g6 {[%clk 0:02:58.4]} 3. Nc3 {[%clk 0:02:59.7]} 3... d5 {[%clk 0:02:58.4]}
4. cxd5 {[%clk 0:02:56.6]} 4... Nxd5 {[%clk 0:02:59.3]} 5. g3 {[%clk 0:02:54]}
5... Bg7 {[%clk 0:02:57.5]} 6. Bg2 {[%clk 0:02:54.2]} 6... O-O {[%clk
0:02:55.7]} 7. O-O {[%clk 0:02:54.3]} 7... Nb6 {[%clk 0:02:55.1]} 8. d4 {[%clk
0:02:52.3]} 8... c6 {[%clk 0:02:49]} 9. e4 {[%clk 0:02:51.9]} 9... Bg4 {[%clk
0:02:47.3]} 10. Ne2 {[%clk 0:02:34.2]} 10... Qd7 {[%clk 0:02:34.4]} 11. Bf4
{[%clk 0:02:27.2]} 11... Na6 {[%clk 0:02:26.3]} 12. Rc1 {[%clk 0:02:23]} 12...
Rad8 {[%clk 0:02:20.4]} 13. Be3 {[%clk 0:01:54.9]} 13... Qe6 {[%clk 0:01:49.5]}
14. Nc3 {[%clk 0:01:33.8]} 14... Nc4 {[%clk 0:01:44.9]} 15. Qb3 {[%clk
0:01:20.3]} 15... Bxf3 {[%clk 0:01:31.1]} 16. Bxf3 {[%clk 0:01:18.5]} 16... Bxd4
{[%clk 0:01:29.5]} 17. Bxd4 {[%clk 0:01:10.5]} 17... Rxd4 {[%clk 0:01:30.4]} 18.
Qxb7 {[%clk 0:01:02.7]} 18... Nd2 {[%clk 0:01:13.3]} 19. Qxa6 {[%clk 0:00:53.1]}
19... Nxf3+ {[%clk 0:01:11.8]} 20. Kg2 {[%clk 0:00:52.5]} 20... Ng5 {[%clk
0:01:10.1]} 21. Qe2 {[%clk 0:00:45.6]} 21... Qh3+ {[%clk 0:00:50.1]} 22. Kg1
{[%clk 0:00:44.9]} 22... Rfd8 {[%clk 0:00:40.5]} 23. Rcd1 {[%clk 0:00:36.5]}
23... Rd2 {[%clk 0:00:32.7]} 24. Qe3 {[%clk 0:00:34.9]} 24... h6 {[%clk
0:00:20.5]} 25. Rxd2 {[%clk 0:00:23.2]} 25... Rxd2 {[%clk 0:00:21.4]} 26. b3
{[%clk 0:00:11.7]} 26... Rc2 {[%clk 0:00:08.9]} 27. Rd1 {[%clk 0:00:10.8]} 27...
Kh7 {[%clk 0:00:07.4]} 28. Ne2 {[%clk 0:00:08.7]} 28... Qg4 {[%clk 0:00:06.3]}
29. Re1 {[%clk 0:00:01.6]} 29... Nf3+ {[%clk 0:00:05.6]} 30. Kf1 {[%clk
0:00:01.1]} 30... Qh3# {[%clk 0:00:02.5]} 0-1

[Event "*** Titled Tuesday Blitz"]
[Site "Chess.com"]
[Date "2021.04.06"]
[Round "10"]
[White "Grieve72"]
[Black "Kildepiotr"]
[Result "1-0"]
[WhiteElo "2515"]
[BlackElo "2638"]
[TimeControl "180+1"]
[EndTime "11:56:19 PDT"]
[Termination "Grieve72 won by resignation"]

1. d4 {[%clk 0:03:00.9]} 1... c5 {[%clk 0:02:59]} 2. e4 {[%clk 0:02:56.7]} 2...
cxd4 {[%clk 0:02:58.3]} 3. Nf3 {[%clk 0:02:57.1]} 3... d6 {[%clk 0:02:54.7]} 4.
Nxd4 {[%clk 0:02:56.9]} 4... Nf6 {[%clk 0:02:54.8]} 5. Nc3 {[%clk 0:02:57.2]}
5... a6 {[%clk 0:02:54.2]} 6. f3 {[%clk 0:02:56.9]} 6... e5 {[%clk 0:02:53.1]}
7. Nb3 {[%clk 0:02:56.8]} 7... Be6 {[%clk 0:02:53.2]} 8. Be3 {[%clk 0:02:57.3]}
8... Nbd7 {[%clk 0:02:50.1]} 9. g4 {[%clk 0:02:53.4]} 9... Be7 {[%clk
0:02:43.7]} 10. Qd2 {[%clk 0:02:52]} 10... b5 {[%clk 0:02:35.5]} 11. g5 {[%clk
0:02:48.3]} 11... Nh5 {[%clk 0:02:35.2]} 12. Rg1 {[%clk 0:02:29.3]} 12... Nb6
{[%clk 0:02:32.2]} 13. Nd5 {[%clk 0:02:17.5]} 13... Nxd5 {[%clk 0:02:28.9]} 14.
exd5 {[%clk 0:02:18.4]} 14... Bf5 {[%clk 0:02:29.2]} 15. Na5 {[%clk 0:02:13.1]}
15... Qc7 {[%clk 0:02:20.5]} 16. Nc6 {[%clk 0:02:01.9]} 16... Bd7 {[%clk
0:02:20.3]} 17. Bd3 {[%clk 0:01:51.6]} 17... Rc8 {[%clk 0:02:15.7]} 18. Be4
{[%clk 0:01:50.1]} 18... Bxc6 {[%clk 0:02:02.4]} 19. dxc6 {[%clk 0:01:34.5]}
19... O-O {[%clk 0:02:02.8]} 20. O-O-O {[%clk 0:01:18.3]} 20... g6 {[%clk
0:01:59.9]} 21. h4 {[%clk 0:01:05.4]} 21... Ng7 {[%clk 0:01:55.5]} 22. f4 {[%clk
0:01:04.9]} 22... exf4 {[%clk 0:01:48.9]} 23. Bxf4 {[%clk 0:01:05.8]} 23... Ne6
{[%clk 0:01:49.6]} 24. Bxd6 {[%clk 0:00:56.2]} 24... Bxd6 {[%clk 0:01:49.5]} 25.
Qxd6 {[%clk 0:00:57.1]} 25... Qxd6 {[%clk 0:01:49.4]} 26. Rxd6 {[%clk 0:00:58]}
26... Rfd8 {[%clk 0:01:48.7]} 27. Rgd1 {[%clk 0:00:56.9]} 27... Rxd6 {[%clk
0:01:48.7]} 28. Rxd6 {[%clk 0:00:57.8]} 28... Kf8 {[%clk 0:01:42.8]} 29. Rd7
{[%clk 0:00:53]} 29... Rc7 {[%clk 0:01:41.1]} 30. Rxc7 {[%clk 0:00:42.5]} 30...
Nxc7 {[%clk 0:01:42]} 31. Kd2 {[%clk 0:00:39.9]} 31... Ke7 {[%clk 0:01:41.8]}
32. c4 {[%clk 0:00:29]} 32... Kd6 {[%clk 0:01:32.7]} 33. cxb5 {[%clk 0:00:27.7]}
33... axb5 {[%clk 0:01:32.1]} 34. Kc3 {[%clk 0:00:25]} 34... Kc5 {[%clk
0:01:30.6]} 35. b4+ {[%clk 0:00:15.8]} 35... Kd6 {[%clk 0:01:29.1]} 36. Kb3
{[%clk 0:00:14.8]} 36... Ne6 {[%clk 0:01:15.6]} 37. a4 {[%clk 0:00:08.8]} 37...
bxa4+ {[%clk 0:01:15.6]} 38. Kxa4 {[%clk 0:00:08.8]} 38... Kc7 {[%clk
0:01:15.6]} 39. Ka5 {[%clk 0:00:08.6]} 39... Nd4 {[%clk 0:01:09.6]} 40. b5
{[%clk 0:00:08.4]} 40... Nb3+ {[%clk 0:01:09]} 41. Kb4 {[%clk 0:00:02.9]} 41...
Nd2 {[%clk 0:01:08.8]} 42. Bd5 {[%clk 0:00:01.8]} 42... Kb6 {[%clk 0:01:06.8]}
43. Kc3 {[%clk 0:00:01.8]} 43... Nf1 {[%clk 0:01:05.8]} 44. Kd4 {[%clk
0:00:02.3]} 44... Ng3 {[%clk 0:01:04.1]} 45. Ke5 {[%clk 0:00:03.2]} 45... Nf5
{[%clk 0:01:03]} 46. h5 {[%clk 0:00:02.8]} 46... Kxb5 {[%clk 0:01:02.6]} 47. c7
{[%clk 0:00:02.5]} 47... Ne7 {[%clk 0:01:02.9]} 48. Bxf7 {[%clk 0:00:02.4]}
48... gxh5 {[%clk 0:01:02.8]} 49. Be6 {[%clk 0:00:02.4]} 49... Kc6 {[%clk
0:00:55.9]} 50. c8=Q+ {[%clk 0:00:03.3]} 50... Nxc8 {[%clk 0:00:56]} 51. Bxc8
{[%clk 0:00:04.2]} 51... h4 {[%clk 0:00:56]} 52. Kf6 {[%clk 0:00:03.7]} 52...
Kd6 {[%clk 0:00:55.6]} 53. Bf5 {[%clk 0:00:03.6]} 1-0

[Event "*** Titled Tuesday Blitz"]
[Site "Chess.com"]
[Date "2021.04.06"]
[Round "10"]
[White "cukin84"]
[Black "ellennilssen"]
[Result "1-0"]
[WhiteElo "2109"]
[BlackElo "2218"]
[TimeControl "180+1"]
[EndTime "11:56:20 PDT"]
[Termination "cukin84 won by checkmate"]

1. e4 {[%clk 0:03:00.9]} 1... e6 {[%clk 0:02:59.7]} 2. d4 {[%clk 0:03:00.3]}
2... d5 {[%clk 0:03:00.3]} 3. Nc3 {[%clk 0:02:59.8]} 3... Bb4 {[%clk 0:02:59.3]}
4. exd5 {[%clk 0:02:57.9]} 4... exd5 {[%clk 0:02:58.6]} 5. Bd3 {[%clk 0:02:58]}
5... Nc6 {[%clk 0:02:57.2]} 6. a3 {[%clk 0:02:54.5]} 6... Bxc3+ {[%clk
0:02:54.4]} 7. bxc3 {[%clk 0:02:54.1]} 7... Nge7 {[%clk 0:02:54]} 8. Qh5 {[%clk
0:02:52.6]} 8... Be6 {[%clk 0:02:51.9]} 9. Nf3 {[%clk 0:02:49.2]} 9... Qd7
{[%clk 0:02:51.5]} 10. h3 {[%clk 0:02:46.3]} 10... O-O-O {[%clk 0:02:47]} 11.
O-O {[%clk 0:02:39.9]} 11... g6 {[%clk 0:02:42]} 12. Qg5 {[%clk 0:02:30]} 12...
h6 {[%clk 0:02:38.1]} 13. Qf6 {[%clk 0:02:29.6]} 13... g5 {[%clk 0:02:32.8]} 14.
a4 {[%clk 0:02:24.1]} 14... Rdg8 {[%clk 0:02:27.2]} 15. Bb5 {[%clk 0:02:08]}
15... Rg6 {[%clk 0:02:20.9]} 16. Qxh8+ {[%clk 0:02:07.3]} 16... Rg8 {[%clk
0:02:13.6]} 17. Bxc6 {[%clk 0:01:52.6]} 17... Qxc6 {[%clk 0:02:10.4]} 18. Qf6
{[%clk 0:01:51.8]} 18... Nf5 {[%clk 0:02:07.9]} 19. Bd2 {[%clk 0:01:45.6]} 19...
Qd6 {[%clk 0:01:39.3]} 20. Qe5 {[%clk 0:01:41.2]} 20... Qe7 {[%clk 0:01:36.9]}
21. c4 {[%clk 0:01:38.6]} 21... Qd7 {[%clk 0:01:31.8]} 22. cxd5 {[%clk
0:01:20.6]} 22... Bxd5 {[%clk 0:01:32.7]} 23. Nh2 {[%clk 0:01:05.9]} 23... h5
{[%clk 0:01:31.6]} 24. c4 {[%clk 0:00:59.6]} 24... Bxc4 {[%clk 0:01:14.6]} 25.
Rfc1 {[%clk 0:00:59]} 25... Nd6 {[%clk 0:01:10.4]} 26. Bb4 {[%clk 0:00:56.8]}
26... Re8 {[%clk 0:01:08.2]} 27. Qxg5 {[%clk 0:00:50.3]} 27... Ne4 {[%clk
0:00:54.7]} 28. Qf4 {[%clk 0:00:43.5]} 28... Bd5 {[%clk 0:00:53.1]} 29. Nf3
{[%clk 0:00:37.3]} 29... c6 {[%clk 0:00:49.4]} 30. a5 {[%clk 0:00:35.4]} 30...
f6 {[%clk 0:00:47.3]} 31. a6 {[%clk 0:00:35]} 31... b6 {[%clk 0:00:45.7]} 32.
Rab1 {[%clk 0:00:30.7]} 32... Rg8 {[%clk 0:00:43.7]} 33. Ba5 {[%clk 0:00:26.8]}
33... Nd6 {[%clk 0:00:34.8]} 34. Bxb6 {[%clk 0:00:24.9]} 34... Qxh3 {[%clk
0:00:27.3]} 35. g3 {[%clk 0:00:20.2]} 35... axb6 {[%clk 0:00:14.5]} 36. Rxb6
{[%clk 0:00:17.7]} 36... Kc7 {[%clk 0:00:08.2]} 37. Rbxc6+ {[%clk 0:00:16.6]}
37... Bxc6 {[%clk 0:00:08.1]} 38. d5 {[%clk 0:00:17]} 38... Rg4 {[%clk
0:00:06.2]} 39. Rxc6+ {[%clk 0:00:16.3]} 39... Kb8 {[%clk 0:00:06.4]} 40. Qxd6+
{[%clk 0:00:16.3]} 40... Ka7 {[%clk 0:00:07.3]} 41. Qc7+ {[%clk 0:00:16.5]}
41... Ka8 {[%clk 0:00:07.4]} 42. Qb7# {[%clk 0:00:15.5]} 1-0

[Event "*** Titled Tuesday Blitz"]
[Site "Chess.com"]
[Date "2021.04.06"]
[Round "10"]
[White "Rish_97"]
[Black "swisspower96"]
[Result "0-1"]
[WhiteElo "2683"]
[BlackElo "2587"]
[TimeControl "180+1"]
[EndTime "11:56:21 PDT"]
[Termination "swisspower96 won on time"]

1. e4 {[%clk 0:03:00.6]} 1... c5 {[%clk 0:02:57.3]} 2. Nf3 {[%clk 0:03:00]} 2...
Nc6 {[%clk 0:02:57.5]} 3. c3 {[%clk 0:02:59.4]} 3... Nf6 {[%clk 0:02:56.9]} 4.
e5 {[%clk 0:02:59.4]} 4... Nd5 {[%clk 0:02:57.5]} 5. d4 {[%clk 0:02:56]} 5...
cxd4 {[%clk 0:02:57.8]} 6. cxd4 {[%clk 0:02:56.9]} 6... d6 {[%clk 0:02:57.6]} 7.
Bc4 {[%clk 0:02:57.4]} 7... Nb6 {[%clk 0:02:56.2]} 8. Bb5 {[%clk 0:02:57.5]}
8... dxe5 {[%clk 0:02:47.5]} 9. Nxe5 {[%clk 0:02:58.4]} 9... Bd7 {[%clk
0:02:47.8]} 10. Nxd7 {[%clk 0:02:49.3]} 10... Qxd7 {[%clk 0:02:48.7]} 11. O-O
{[%clk 0:02:49.8]} 11... a6 {[%clk 0:02:49.3]} 12. Bxc6 {[%clk 0:02:40.7]} 12...
Qxc6 {[%clk 0:02:50.2]} 13. Nc3 {[%clk 0:02:41.3]} 13... e6 {[%clk 0:02:50.7]}
14. Re1 {[%clk 0:02:37.4]} 14... Be7 {[%clk 0:02:49.2]} 15. Qg4 {[%clk
0:02:37.2]} 15... O-O-O {[%clk 0:02:20.7]} 16. Bf4 {[%clk 0:02:10.4]} 16... h5
{[%clk 0:02:18.3]} 17. Qg3 {[%clk 0:02:04.9]} 17... h4 {[%clk 0:02:16.8]} 18.
Qh3 {[%clk 0:01:58]} 18... g5 {[%clk 0:01:56.8]} 19. Be5 {[%clk 0:01:46.4]}
19... Rhg8 {[%clk 0:01:10.8]} 20. Rac1 {[%clk 0:01:26.3]} 20... g4 {[%clk
0:01:10.6]} 21. Qd3 {[%clk 0:01:24.9]} 21... Nc4 {[%clk 0:00:48.1]} 22. Na4
{[%clk 0:00:29.9]} 22... b5 {[%clk 0:00:43.5]} 23. b3 {[%clk 0:00:24]} 23... h3
{[%clk 0:00:42.3]} 24. Re4 {[%clk 0:00:08.7]} 24... f5 {[%clk 0:00:39.1]} 25.
bxc4 {[%clk 0:00:07.6]} 25... bxa4 {[%clk 0:00:39.5]} 26. d5 {[%clk 0:00:04.2]}
26... fxe4 {[%clk 0:00:39.3]} 27. Qb1 {[%clk 0:00:03.3]} 27... Qb7 {[%clk
0:00:36.1]} 28. Qxe4 {[%clk 0:00:03.9]} 28... Bb4 {[%clk 0:00:23.5]} 29. Rb1
{[%clk 0:00:03.9]} 29... a5 {[%clk 0:00:22.2]} 30. a3 {[%clk 0:00:03.8]} 30...
exd5 {[%clk 0:00:22.6]} 31. cxd5 {[%clk 0:00:03.5]} 31... Qxd5 {[%clk
0:00:22.9]} 32. Qc2+ {[%clk 0:00:01.6]} 32... Qc5 {[%clk 0:00:20.7]} 33. Qf5+
{[%clk 0:00:01.8]} 33... Rd7 {[%clk 0:00:16.8]} 34. axb4 {[%clk 0:00:02.7]}
34... axb4 {[%clk 0:00:17.2]} 35. Qe4 {[%clk 0:00:01.5]} 35... Qd5 {[%clk
0:00:16.2]} 36. Qc2+ {[%clk 0:00:01.1]} 36... Kd8 {[%clk 0:00:16.2]} 37. Qf5
{[%clk 0:00:01.2]} 37... Qd1+ {[%clk 0:00:15.6]} 0-1

[Event "*** Titled Tuesday Blitz"]
[Site "Chess.com"]
[Date "2021.04.06"]
[Round "10"]
[White "Alex-11211"]
[Black "Balla_Tamas"]
[Result "0-1"]
[WhiteElo "2422"]
[BlackElo "2561"]
[TimeControl "180+1"]
[EndTime "11:56:22 PDT"]
[Termination "Balla_Tamas won by resignation"]

1. e4 {[%clk 0:03:00.9]} 1... c5 {[%clk 0:02:59.5]} 2. Nf3 {[%clk 0:03:00.7]}
2... e6 {[%clk 0:02:59.8]} 3. Nc3 {[%clk 0:03:00]} 3... a6 {[%clk 0:02:58.9]} 4.
d4 {[%clk 0:02:58.1]} 4... cxd4 {[%clk 0:02:59]} 5. Nxd4 {[%clk 0:02:59]} 5...
Qc7 {[%clk 0:02:59.5]} 6. g3 {[%clk 0:02:59.3]} 6... Bb4 {[%clk 0:02:58.1]} 7.
Bd2 {[%clk 0:02:58.6]} 7... Nc6 {[%clk 0:02:57.3]} 8. Nb3 {[%clk 0:02:54.2]}
8... Nf6 {[%clk 0:02:56]} 9. Bg2 {[%clk 0:02:52]} 9... Be7 {[%clk 0:02:55.9]}
10. O-O {[%clk 0:02:45.9]} 10... d6 {[%clk 0:02:56]} 11. f4 {[%clk 0:02:37.2]}
11... b5 {[%clk 0:02:51.2]} 12. e5 {[%clk 0:02:15.6]} 12... dxe5 {[%clk
0:02:42.1]} 13. fxe5 {[%clk 0:02:16.5]} 13... Nd7 {[%clk 0:02:42.3]} 14. Qg4
{[%clk 0:01:43.7]} 14... g6 {[%clk 0:02:24.4]} 15. Qf4 {[%clk 0:00:41]} 15...
O-O {[%clk 0:02:22.8]} 16. Rae1 {[%clk 0:00:39.3]} 16... Bb7 {[%clk 0:02:18.9]}
17. Ne4 {[%clk 0:00:28.8]} 17... Qxe5 {[%clk 0:02:01.8]} 18. Nf6+ {[%clk
0:00:19.7]} 18... Qxf6 {[%clk 0:02:00.6]} 19. Qc7 {[%clk 0:00:20.4]} 19... Qxb2
{[%clk 0:01:35.1]} 20. Qxd7 {[%clk 0:00:17.2]} 20... Rad8 {[%clk 0:01:24.5]} 21.
Qxb7 {[%clk 0:00:16.7]} 21... Rxd2 {[%clk 0:01:24.5]} 22. Nxd2 {[%clk
0:00:14.7]} 22... Qd4+ {[%clk 0:01:25]} 23. Kh1 {[%clk 0:00:13.5]} 23... Qxd2
{[%clk 0:01:22.5]} 24. Qxc6 {[%clk 0:00:12.7]} 24... Qb4 {[%clk 0:01:21.4]} 25.
Qe4 {[%clk 0:00:11.6]} 25... Qc5 {[%clk 0:01:20.9]} 26. Qe5 {[%clk 0:00:11]}
26... Qxc2 {[%clk 0:01:19.1]} 27. Re2 {[%clk 0:00:10.8]} 27... Qd3 {[%clk
0:01:17.5]} 28. Ref2 {[%clk 0:00:11]} 28... Qd7 {[%clk 0:01:10.4]} 29. Qe2
{[%clk 0:00:10.5]} 29... Bc5 {[%clk 0:01:10]} 30. Rf3 {[%clk 0:00:10.5]} 30...
Bd4 {[%clk 0:01:08.6]} 31. Rd3 {[%clk 0:00:10.3]} 31... e5 {[%clk 0:01:08.4]}
32. Qf3 {[%clk 0:00:10.1]} 32... Qe6 {[%clk 0:01:06]} 33. Qd5 {[%clk 0:00:10.4]}
33... Qe7 {[%clk 0:01:06]} 34. Rdf3 {[%clk 0:00:10.1]} 34... Kg7 {[%clk
0:01:04]} 35. Re1 {[%clk 0:00:07.6]} 35... Rd8 {[%clk 0:01:02.3]} 36. Qb3 {[%clk
0:00:04.6]} 36... f5 {[%clk 0:01:00.2]} 37. Rd3 {[%clk 0:00:05.1]} 37... Qc5
{[%clk 0:00:57.7]} 38. Red1 {[%clk 0:00:04.9]} 38... Re8 {[%clk 0:00:56.7]} 39.
Bf3 {[%clk 0:00:02.6]} 39... Re7 {[%clk 0:00:55.5]} 40. Bg2 {[%clk 0:00:03.1]}
40... h5 {[%clk 0:00:54.5]} 41. Qb1 {[%clk 0:00:03.7]} 41... Qd6 {[%clk
0:00:52.1]} 42. Qc1 {[%clk 0:00:04]} 42... Rc7 {[%clk 0:00:51.4]} 43. Qg5 {[%clk
0:00:04]} 43... Qf6 {[%clk 0:00:51.3]} 44. Qxf6+ {[%clk 0:00:03.7]} 44... Kxf6
{[%clk 0:00:51.8]} 45. h4 {[%clk 0:00:04]} 45... Rc2 {[%clk 0:00:51.6]} 46. R1d2
{[%clk 0:00:04.1]} 46... Rc1+ {[%clk 0:00:51.6]} 47. Kh2 {[%clk 0:00:04.6]}
47... Re1 {[%clk 0:00:51.1]} 48. Rxd4 {[%clk 0:00:03.7]} 48... exd4 {[%clk
0:00:50.7]} 49. Rxd4 {[%clk 0:00:04.6]} 49... Re2 {[%clk 0:00:51.1]} 50. Rd6+
{[%clk 0:00:04.7]} 50... Re6 {[%clk 0:00:48.3]} 51. Rxa6 {[%clk 0:00:05.6]}
51... Rxa6 {[%clk 0:00:46.5]} 0-1